bitfinex/quotes_SOLUSD_20251214
["timestamp","ask_amount","ask_price","bid_price","bid_amount"]
[1765739767542,0.71,130.17,130.13,10.3696375]
[1765739767743,0.71,130.17,130.13,8.30448581]
[1765739767943,0.71,130.17,130.13,10.3696375]
[1765739769451,8.39242336,130.17,130.13,10.3696375]
[1765739770346,0.71,130.16,130.13,10.3696375]
[1765739770881,0.71,130.17,130.14,0.62]
[1765739771064,0.71,130.17,130.14,2.06515169]
[1765739771372,0.71,130.16,130.13,10.3696375]
[1765739773683,8.3929569,130.16,130.12,16.10497522]
[1765739774274,0.71,130.15,130.11,7.68555593]
[1765739775564,8.39395413,130.15,130.11,7.68555593]
[1765739775763,0.71,130.14,130.11,7.68555593]
[1765739776574,13.7570912,130.16,130.12,2.68515169]
[1765739776774,0.71,130.15,130.12,2.68515169]
[1765739777683,0.71,130.15,130.13,7.68462306]
[1765739780257,8.39347875,130.15,130.11,7.68537697]
[1765739780651,0.71,130.14,130.1,18.17118115]
[1765739780882,0.71,130.14,130.1,16.10602946]
[1765739781087,0.71,130.14,130.1,16.72602946]
[1765739781452,0.71,130.14,130.11,7.68570995]
[1765739781657,8.39403286,130.14,130.11,7.68570995]
[1765739781857,8.39403286,130.14,130.1,16.72614519]
[1765739782073,0.71,130.13,130.1,16.72614519]
[1765739782399,0.71,130.15,130.11,2.68515169]
[1765739782775,0.71,130.15,130.12,0.62]
[1765739783287,0.71,130.15,130.12,8.30463346]
[1765739784871,0.71,130.15,130.12,7.68463346]
[1765739785700,11.61789317,130.15,130.1,16.10603929]
[1765739785861,0.5,130.14,130.1,16.10603929]
[1765739786062,1.21,130.14,130.1,16.10603929]
[1765739786500,0.69,130.13,130.1,16.10603929]
[1765739787065,0.69,130.13,130.1,16.72603929]
[1765739789788,0.5,130.14,130.11,0.62]
[1765739790105,0.68,130.14,130.11,0.62]
[1765739790682,0.68,130.14,130.1,19.95106526]
[1765739794311,0.68,130.14,130.1,19.33106526]
[1765739794513,0.68,130.14,130.11,8.30555759]
[1765739794814,0.68,130.14,130.11,7.68555759]
[1765739795013,8.36408458,130.14,130.1,8.42]
[1765739795212,8.36408458,130.14,130.1,16.10633185]
[1765739795522,0.68,130.13,130.1,16.72633185]
[1765739797095,0.68,130.13,130.1,19.95135782]
[1765739797832,20.73078137,130.15,130.1,8.42]
[1765739798110,20.73078137,130.15,130.07,19.93959214]
[1765739798111,13.7270912,130.12,130.07,19.93959214]
[1765739798335,16.95211717,130.12,130.08,7.68723229]
[1765739798579,0.68,130.11,130.08,7.68723229]
[1765739798743,0.68,130.11,130.08,8.30723229]
[1765739800905,8.36476569,130.13,130.09,3.84502597]
[1765739801107,0.68,130.13,130.09,3.84502597]
[1765739801306,0.68,130.13,130.1,0.62]
[1765739802321,0.68,130.13,130.1,8.30637056]
[1765739804027,8.36466915,130.13,130.08,3.84502597]
[1765739804227,11.58969512,130.13,130.08,0.62]
[1765739804524,0.68,130.12,130.08,0.62]
[1765739804745,0.68,130.12,130.07,12.36502597]
[1765739805397,0.68,130.12,130.08,3.84502597]
[1765739806526,7.68466915,130.13,130.07,8.52]
[1765739806527,8.36466915,130.13,130.09,11.5320119]
[1765739806905,0.68,130.12,130.09,8.30698593]
[1765739809326,0.68,130.12,130.09,11.5320119]
[1765739809842,0.68,130.12,130.09,10.9120119]
[1765739810408,0.68,130.12,130.09,8.30698593]
[1765739813344,0.68,130.12,130.09,11.5320119]
[1765739813758,8.36441955,130.14,130.1,3.84502597]
[1765739814127,0.68,130.13,130.1,3.84502597]
[1765739814755,0.68,130.13,130.1,8.30616794]
[1765739814956,0.68,130.13,130.1,7.68616794]
[1765739815170,8.36491977,130.13,130.08,0.62]
[1765739815326,13.7270912,130.15,130.11,3.22502597]
[1765739815527,21.41058192,130.15,130.12,0.62]
[1765739815834,21.41058192,130.15,130.11,3.22502597]
[1765739815835,0.68,130.14,130.11,3.84502597]
[1765739816426,0.68,130.14,130.1,19.33131869]
[1765739816758,0.68,130.14,130.1,16.10629272]
[1765739816931,8.36451173,130.14,130.1,16.10629272]
[1765739817132,8.36451173,130.14,130.1,8.42]
[1765739817347,0.72,130.13,130.1,8.42]
[1765739817933,0.72,130.13,130.09,11.53186748]
[1765739818448,8.40478103,130.13,130.09,11.53186748]
[1765739818962,0.72,130.12,130.09,11.53186748]
[1765739819173,0.72,130.12,130.09,8.30684151]
[1765739819832,0.72,130.12,130.09,7.68684151]
[1765739820462,0.72,130.13,130.1,0.62]
[1765739820632,0.72,130.12,130.09,8.30684151]
[1765739821833,8.40534144,130.12,130.08,16.10732251]
[1765739822053,0.72,130.11,130.08,16.72732251]
[1765739822267,13.0470912,130.12,130.09,11.53183057]
[1765739822435,0.72,130.13,130.09,11.53183057]
[1765739823357,0.72,130.13,130.09,11.53194287]
[1765739823862,0.72,130.13,130.09,10.91194287]
[1765739824058,0.72,130.13,130.1,11.53113677]
[1765739825369,20.73080295,130.15,130.1,10.91113677]
[1765739825668,0.72,130.14,130.11,0.62]
[1765739825851,0.72,130.14,130.1,10.91113677]
[1765739826036,0.72,130.14,130.1,11.53113677]
[1765739826469,0.72,130.14,130.11,0.62]
[1765739826877,8.40410915,130.14,130.1,11.53113677]
[1765739827255,0.72,130.13,130.1,11.53113677]
[1765739829356,0.72,130.14,130.11,3.84513827]
[1765739830356,0.72,130.14,130.11,11.53052777]
[1765739830859,0.72,130.14,130.11,8.3053895]
[1765739835490,0.72,130.14,130.11,7.8053895]
[1765739835688,0.72,130.14,130.11,7.6853895]
[1765739836791,0.72,130.17,130.12,3.22513827]
[1765739836991,13.7670912,130.17,130.12,3.22513827]
[1765739837490,0.72,130.16,130.13,0.12]
[1765739837674,0.72,130.16,130.12,3.34513827]
[1765739837871,0.72,130.16,130.11,19.33052777]
[1765739838191,0.72,130.16,130.11,19.45052777]
[1765739838491,0.72,130.16,130.11,16.2253895]
[1765739838665,0.72,130.16,130.11,19.45052777]
[1765739839166,8.40301829,130.16,130.11,19.45052777]
[1765739839709,0.72,130.15,130.11,19.45052777]
[1765739841992,8.40378478,130.15,130.11,16.1053895]
[1765739842367,0.72,130.14,130.11,16.1053895]
[1765739843485,0.72,130.14,130.11,16.2253895]
[1765739845074,0.72,130.15,130.12,0.12]
[1765739846098,0.72,130.15,130.12,3.34513827]
[1765739846476,0.72,130.15,130.11,8.42]
[1765739846663,0.72,130.15,130.11,16.10578201]
[1765739847369,8.40374664,130.15,130.11,16.10578201]
[1765739847772,0.72,130.14,130.11,16.10578201]
[1765739847987,0.72,130.14,130.11,18.28977015]
[1765739848996,0.72,130.14,130.11,16.22578201]
[1765739850801,0.72,130.14,130.11,18.28977015]
[1765739851090,0.72,130.14,130.11,18.16977015]
[1765739851270,0.72,130.15,130.12,0.12]
[1765739851674,0.72,130.15,130.12,2.18398814]
[1765739851867,0.72,130.16,130.13,2.06398814]
[1765739852083,0.72,130.16,130.13,2.18398814]
[1765739852980,0.72,130.16,130.13,9.86845738]
[1765739853794,8.40300246,130.16,130.13,7.68446924]
[1765739854174,0.72,130.15,130.13,7.68446924]
[1765739856071,8.40351458,130.15,130.12,7.80506738]
[1765739856374,0.72,130.15,130.12,7.80506738]
[1765739856697,0.72,130.14,130.12,7.68506738]
[1765739859100,0.72,130.14,130.11,10.60398814]
[1765739859101,8.40407933,130.14,130.11,16.1057039]
[1765739859297,0.72,130.13,130.11,16.1057039]
[1765739861899,0.72,130.13,130.11,16.2257039]
[1765739862070,0.72,130.14,130.11,16.2257039]
[1765739864077,0.72,130.14,130.11,18.28941356]
[1765739864506,0.72,130.14,130.11,16.1057039]
[1765739867307,10.46789064,130.14,130.08,19.21803188]
[1765739867483,23.51498184,130.14,130.09,16.1065215]
[1765739867683,0.72,130.13,130.09,16.1065215]
[1765739867880,0.72,130.13,130.09,16.2265215]
[1765739869779,8.40473223,130.13,130.09,16.2265215]
[1765739869976,0.72,130.12,130.09,16.2265215]
[1765739870216,0.72,130.12,130.09,8.42]
[1765739870417,1.22,130.12,130.08,7.68748369]
[1765739870582,1.22,130.12,130.07,16.20806932]
[1765739870784,0.72,130.11,130.08,7.68724552]
[1765739870987,0.72,130.11,130.08,7.80724552]
[1765739871296,0.72,130.11,130.08,9.87095518]
[1765739871816,0.72,130.11,130.08,7.80724552]
[1765739871977,0.72,130.11,130.08,9.75095518]
[1765739872177,0.72,130.11,130.08,9.87095518]
[1765739873006,0.72,130.11,130.08,9.75095518]
[1765739874319,0.5,130.12,130.09,2.18370966]
[1765739874508,7.68480755,130.13,130.09,2.06370966]
[1765739874710,0.72,130.12,130.09,2.06370966]
[1765739875404,0.72,130.12,130.09,9.75057581]
[1765739876412,8.40527401,130.12,130.08,7.68750506]
[1765739876596,10.46898367,130.12,130.07,16.2080666]
[1765739876797,0.66,130.11,130.07,16.2080666]
[1765739877299,8.34625802,130.11,130.07,16.2080666]
[1765739877691,0.66,130.1,130.07,16.2080666]
[1765739878220,0.66,130.1,130.07,8.52]
[1765739878583,0.66,130.1,130.07,0.1]
[1765739878820,0.5,130.09,130.07,0.1]
[1765739879318,8.34757687,130.08,130.07,0.1]
[1765739879702,0.66,130.08,130.07,0.1]
[1765739880017,15.3762299,130.1,130.07,0.1]
[1765739880314,0.66,130.1,130.07,0.1]
[1765739880496,0.66,130.09,130.07,0.1]
[1765739881916,126.09308189,130.11,130.08,0.12]
[1765739882225,0.66,130.1,130.07,0.1]
[1765739883311,7.68698593,130.09,130.07,0.1]
[1765739883686,0.66,130.08,130.07,0.1]
[1765739885527,8.34757687,130.08,130.07,0.1]
[1765739887318,10.41128653,130.08,130.07,0.1]
[1765739887495,8.34757687,130.08,130.07,0.1]
[1765739889784,115.18370966,130.09,130.07,0.1]
[1765739889785,113.78,130.09,130.07,0.1]
[1765739889996,104.7,130.09,130.07,0.22]
[1765739890436,7.68545566,130.12,130.07,2.28370966]
[1765739890601,7.68545566,130.12,130.08,2.18370966]
[1765739890800,3.07798853,130.12,130.08,0.12]
[1765739891046,7.68472912,130.13,130.09,2.18370966]
[1765739891208,0.66,130.12,130.09,2.18370966]
[1765739891598,0.66,130.12,130.09,2.06370966]
[1765739891927,0.66,130.12,130.09,9.87055288]
[1765739893722,8.34523541,130.12,130.09,2.06370966]
[1765739893919,8.34523541,130.12,130.09,9.87065712]
[1765739894099,0.66,130.12,130.09,9.87065712]
[1765739894620,21.39131748,130.14,130.1,2.18370966]
[1765739894816,0.66,130.13,130.09,7.68694746]
[1765739895021,0.66,130.13,130.09,9.75065712]
[1765739895214,0.66,130.13,130.09,9.87065712]
[1765739895907,0.66,130.13,130.09,9.75065712]
[1765739896328,8.34473817,130.13,130.09,9.75065712]
[1765739896534,8.34473817,130.13,130.09,9.87065712]
[1765739896720,0.66,130.12,130.09,9.87065712]
[1765739897427,0.66,130.12,130.08,9.75178933]
[1765739897635,0.66,130.12,130.09,7.68686232]
[1765739897930,0.66,130.12,130.09,9.75133511]
[1765739898505,8.34541929,130.12,130.09,2.06447279]
[1765739898914,0.66,130.11,130.09,2.06447279]
[1765739899446,0.66,130.11,130.08,9.75185814]
[1765739899917,0.66,130.11,130.08,9.87185814]
[1765739900543,0.66,130.11,130.07,16.20812885]
[1765739900544,8.34591611,130.11,130.07,16.20812885]
[1765739900708,8.34591611,130.11,130.07,18.39260164]
[1765739901022,0.66,130.1,130.07,18.39260164]
[1765739902439,0.66,130.1,130.07,18.27260164]
[1765739902935,8.3464073,130.1,130.07,18.27260164]
[1765739903140,8.3464073,130.1,130.07,16.20812885]
[1765739903333,0.66,130.09,130.07,16.20812885]
[1765739904934,0.66,130.09,130.07,18.27260164]
[1765739905631,0.66,130.09,130.07,16.20812885]
[1765739905939,7.6864073,130.1,130.07,16.20812885]
[1765739906143,0.66,130.1,130.07,16.20812885]
[1765739906511,0.66,130.1,130.07,18.39260164]
[1765739909411,0.66,130.1,130.07,19.55450902]
[1765739910520,0.72,130.11,130.08,3.34638017]
[1765739910920,0.72,130.11,130.07,19.43450902]
[1765739911123,0.72,130.11,130.07,19.55450902]
[1765739911325,0.72,130.11,130.07,19.43450902]
[1765739911534,8.40592448,130.11,130.07,19.55450902]
[1765739912048,0.72,130.1,130.07,19.55450902]
[1765739914034,0.72,130.1,130.07,16.20812885]
[1765739914243,0.72,130.1,130.07,16.32812885]
[1765739914526,0.72,130.1,130.07,19.55450902]
[1765739917345,8.40640801,130.1,130.07,19.55450902]
[1765739919552,0.72,130.09,130.07,19.43450902]
[1765739919728,0.72,130.1,130.07,16.32812885]
[1765739919928,0.72,130.1,130.07,8.64]
[1765739920449,0.72,130.1,130.07,19.55442237]
[1765739922120,8.40641495,130.1,130.07,8.64]
[1765739922656,7.68641495,130.1,130.07,8.52]
[1765739922860,0.72,130.09,130.07,0.1]
[1765739923431,8.40701793,130.09,130.07,0.1]
[1765739923929,0.72,130.08,130.07,0.1]
[1765739925944,8.40757687,130.08,130.07,0.1]
[1765739926355,61.12993534,130.08,130.05,0.1]
[1765739926662,0.72,130.07,130.05,0.1]
[1765739926868,0.72,130.07,130.05,3.32638017]
[1765739927076,0.72,130.07,130.05,0.1]
[1765739927569,33.09254583,130.08,130.05,3.32638017]
[1765739927738,13.7670912,130.08,130.05,3.54638017]
[1765739928059,13.7670912,130.08,130.07,3.22638017]
[1765739928060,3.22638017,130.08,130.07,3.22638017]
[1765739928268,0.72,130.1,130.07,3.22638017]
[1765739928454,0.72,130.1,130.08,3.22638017]
[1765739928659,8.40662583,130.1,130.07,3.22638017]
[1765739928859,8.40662583,130.1,130.05,0.1]
[1765739929040,0.72,130.09,130.07,3.22638017]
[1765739929363,24.67948593,130.11,130.07,3.22638017]
[1765739929579,13.0470912,130.11,130.09,3.22638017]
[1765739930035,13.7670912,130.11,130.09,3.22638017]
[1765739930243,0.72,130.12,130.09,3.44638017]
[1765739930443,0.72,130.12,130.09,11.13316799]
[1765739930865,29.15133935,130.14,130.09,10.91316799]
[1765739931076,0.72,130.13,130.1,3.44638017]
[1765739931251,0.72,130.13,130.1,3.22638017]
[1765739931449,0.72,130.13,130.11,3.22638017]
[1765739931863,0.72,130.13,130.1,3.22638017]
[1765739932040,0.72,130.13,130.1,3.44638017]
[1765739932661,0.72,130.13,130.1,11.13276261]
[1765739933045,0.72,130.13,130.1,19.55276261]
[1765739933796,0.72,130.13,130.1,19.55111801]
[1765739935278,0.5,130.12,130.07,3.22473557]
[1765739935476,0.72,130.11,130.06,19.33301426]
[1765739936065,0.72,130.11,130.06,19.55301426]
[1765739936459,0.72,130.11,130.07,7.68812208]
[1765739937271,8.40583281,130.11,130.07,11.13285765]
[1765739937451,0.72,130.11,130.08,3.44473557]
[1765739937652,0.72,130.11,130.09,3.22473557]
[1765739937965,0.72,130.11,130.08,3.44473557]
[1765739938182,8.40636484,130.11,130.06,23.79666801]
[1765739938342,21.45345604,130.11,130.06,19.3332815]
[1765739938548,0.7,130.1,130.06,19.5532815]
[1765739939472,8.38648349,130.1,130.06,19.5532815]
[1765739941372,0.7,130.09,130.06,19.3332815]
[1765739941572,7.68648349,130.1,130.06,19.3332815]
[1765739941573,13.0470912,130.11,130.07,3.44473557]
[1765739941759,0.7,130.12,130.09,3.22473557]
[1765739942245,0.7,130.12,130.06,35.33044351]
[1765739942447,126.13132267,130.14,130.09,0.22]
[1765739942650,0.7,130.13,130.1,3.22473557]
[1765739943574,0.7,130.13,130.1,10.91110612]
[1765739945881,8.38467728,130.13,130.09,19.55156608]
[1765739946078,8.38467728,130.13,130.09,19.33156608]
[1765739946253,0.7,130.12,130.09,19.33156608]
[1765739947480,8.38524457,130.12,130.08,3.22473557]
[1765739947983,0.7,130.11,130.08,11.13227896]
[1765739949068,8.38476273,130.13,130.09,3.44473557]
[1765739949262,0.7,130.12,130.09,3.44473557]
[1765739949992,0.7,130.12,130.09,11.13159803]
[1765739950680,0.7,130.12,130.1,3.22473557]
[1765739951892,7.68476273,130.13,130.1,3.44473557]
[1765739952099,8.38476273,130.13,130.1,3.44473557]
[1765739952266,8.38476273,130.13,130.1,3.22473557]
[1765739952466,0.7,130.12,130.1,3.22473557]
[1765739954209,125.43137223,130.14,130.11,3.44473557]
[1765739954403,0.7,130.13,130.1,19.33096529]
[1765739955226,0.7,130.13,130.1,19.55096529]
[1765739961539,0.7,130.13,130.1,19.33096529]
[1765739961712,8.38493359,130.13,130.1,11.64473557]
[1765739962053,10.60966916,130.13,130.07,0.68]
[1765739962210,10.60966916,130.13,130.08,8.42]
[1765739962413,35.01649126,130.13,130.08,19.33216272]
[1765739962633,35.01649126,130.13,130.08,20.01216272]
[1765739963943,8.38556529,130.12,130.08,20.01216272]
[1765739964444,0.7,130.11,130.08,20.01216272]
[1765739965130,8.38592114,130.11,130.08,19.33216272]
[1765739965334,8.38592114,130.11,130.08,16.10742715]
[1765739965540,0.7,130.1,130.08,19.33216272]
[1765739965716,7.68592114,130.11,130.08,20.01216272]
[1765739965917,8.38592114,130.11,130.08,20.01216272]
[1765739966840,0.7,130.11,130.08,20.01216272]
[1765739969552,0.7,130.11,130.08,18.85204383]
[1765739970043,0.7,130.11,130.08,18.85204237]
[1765739971043,8.42,130.13,130.1,2.06461522]
[1765739971223,7.68380256,130.15,130.12,2.06461522]
[1765739971429,8.40380256,130.15,130.12,2.06461522]
[1765739971742,8.40380256,130.15,130.12,2.71461522]
[1765739972118,0.72,130.14,130.12,2.71461522]
[1765739972314,7.68380256,130.15,130.12,10.39974973]
[1765739972540,0.72,130.14,130.12,10.39974973]
[1765739972721,0.72,130.14,130.12,2.71461522]
[1765739973442,8.40303903,130.16,130.12,8.33505191]
[1765739973745,8.40303903,130.16,130.12,10.39966713]
[1765739973949,0.72,130.15,130.12,10.39966713]
[1765739975455,0.72,130.15,130.12,9.74966713]
[1765739976148,8.40363122,130.15,130.11,18.82015827]
[1765739976533,0.72,130.14,130.11,18.82015827]
[1765739982355,0.72,130.14,130.11,18.17015827]
[1765739982552,0.72,130.14,130.11,18.82015827]
[1765739984552,7.68311053,130.16,130.12,10.39971216]
[1765739984730,0.72,130.14,130.12,8.33509694]
[1765739984928,0.72,130.14,130.12,7.68509694]
[1765739986456,7.68344501,130.15,130.12,7.68509694]
[1765739986661,8.40344501,130.15,130.12,10.39971216]
[1765739987034,0.72,130.15,130.12,10.39971216]
[1765739987236,8.40312154,130.16,130.13,0.65]
[1765739987545,7.68312154,130.16,130.13,0.65]
[1765739987743,0.72,130.15,130.13,0.65]
[1765739988563,0.72,130.15,130.12,9.74971216]
[1765739988771,0.72,130.16,130.13,10.39907097]
[1765739989067,13.7670912,130.17,130.14,2.06461522]
[1765739989262,0.72,130.18,130.15,2.06461522]
[1765739989460,0.72,130.18,130.15,2.71461522]
[1765739990360,0.72,130.18,130.15,10.39767673]
[1765739992369,0.72,130.18,130.15,9.74767673]
[1765739992670,0.72,130.21,130.17,2.06461522]
[1765739992868,0.72,130.21,130.19,2.06461522]
[1765739993167,0.72,130.22,130.19,2.06461522]
[1765739993370,0.72,130.24,130.2,11.13461522]
[1765739993579,0.92,130.25,130.22,2.06461522]
[1765739993942,0.2,130.25,130.23,2.71461522]
[1765739994150,0.92,130.25,130.22,2.06461522]
[1765739994369,0.2,130.25,130.23,0.65]
[1765739994560,0.2,130.25,130.23,8.32866208]
[1765739995943,0.2,130.25,130.23,10.3932773]
[1765739996879,0.86,130.25,130.22,9.74374634]
[1765739997251,0.86,130.25,130.22,10.46374634]
[1765739998385,0.66,130.24,130.22,2.06461522]
[1765739999280,0.66,130.24,130.21,10.464414]
[1765740000074,0.66,130.24,130.22,0.72]
[1765740000876,0.66,130.24,130.22,8.3992467]
[1765740001079,0.66,130.24,130.22,7.6792467]
[1765740001282,0.86,130.25,130.22,8.3992467]
[1765740001584,0.66,130.24,130.22,2.06461522]
[1765740001781,0.2,130.25,130.22,9.74388634]
[1765740001981,0.2,130.25,130.24,2.06461522]
[1765740002389,0.2,130.25,130.24,2.78461522]
[1765740002565,0.2,130.25,130.24,11.87888328]
[1765740002961,0.2,130.25,130.24,19.55701595]
[1765740005796,0.2,130.25,130.24,19.55090656]
[1765740007595,0.2,130.25,130.24,8.39813267]
[1765740007779,0.2,130.25,130.24,10.4566385]
[1765740008787,0.2,130.25,130.24,9.7366385]
[1765740009187,0.2,130.25,130.24,7.67813267]
[1765740009393,0.86,130.25,130.23,8.42]
[1765740009597,0.86,130.25,130.23,10.47850583]
[1765740009898,0.2,130.25,130.23,11.19850583]
[1765740010278,0.2,130.25,130.23,18.87721272]
[1765740012972,0.86,130.25,130.23,16.09870689]
[1765740013387,0.2,130.25,130.23,16.09870689]
[1765740013969,0.2,130.25,130.23,16.81870689]
[1765740014170,0.2,130.25,130.23,18.87721272]
[1765740014896,0.2,130.25,130.23,16.81870689]
[1765740015070,0.2,130.25,130.23,18.87721272]
[1765740015270,0.2,130.25,130.23,16.81870689]
[1765740017990,0.2,130.25,130.23,18.87721272]
[1765740019196,0.86,130.25,130.23,18.87721272]
[1765740021101,0.86,130.25,130.23,16.81870689]
[1765740021416,0.86,130.25,130.23,18.87721272]
[1765740021594,0.2,130.25,130.24,2.05850583]
[1765740021796,0.2,130.25,130.24,2.77850583]
[1765740023116,0.2,130.25,130.24,2.05850583]
[1765740023903,0.2,130.25,130.24,9.7366385]
[1765740025209,0.2,130.25,130.24,10.4566385]
[1765740025896,0.2,130.25,130.24,9.7366385]
[1765740026403,0.2,130.25,130.24,7.67813267]
[1765740026604,0.2,130.25,130.24,9.7366385]
[1765740029318,0.2,130.25,130.24,10.4466385]
[1765740029528,0.2,130.25,130.24,11.60509194]
[1765740031030,0.2,130.25,130.24,8.38813267]
[1765740031233,0.86,130.25,130.24,10.89509194]
[1765740031463,0.86,130.25,130.24,7.67813267]
[1765740031731,0.2,130.25,130.24,10.89509194]
[1765740031912,0.2,130.25,130.24,11.60509194]
[1765740034222,0.2,130.25,130.24,8.38813267]
[1765740034397,0.2,130.25,130.24,11.60509194]
[1765740034798,0.2,130.25,130.24,10.60509194]
[1765740037810,0.86,130.25,130.24,15.07813267]
[1765740038449,0.2,130.25,130.24,18.29509194]
[1765740038629,0.2,130.25,130.24,19.00509194]
[1765740039249,0.2,130.25,130.24,18.29509194]
[1765740039922,0.86,130.25,130.24,15.07813267]
[1765740040268,0.2,130.25,130.24,18.29509194]
[1765740042151,0.2,130.25,130.24,18.29603564]
[1765740042447,0.2,130.25,130.24,19.00603564]
[1765740042751,0.2,130.25,130.24,18.29603564]
[1765740045457,0.86,130.25,130.24,18.29603564]
[1765740045834,0.2,130.25,130.24,18.29603564]
[1765740048268,0.86,130.25,130.24,18.29603564]
[1765740048869,0.2,130.25,130.24,18.29603564]
[1765740051968,0.86,130.25,130.24,8.4]
[1765740052271,0.86,130.25,130.23,7.6784676]
[1765740052567,0.66,130.24,130.23,7.6784676]
[1765740058186,0.66,130.24,130.22,7.67923626]
[1765740058757,0.66,130.24,130.22,10.89713923]
[1765740060487,0.66,130.24,130.22,7.67923626]
[1765740060688,0.66,130.24,130.21,19.29761137]
[1765740060862,13.7070912,130.24,130.21,8.4]
[1765740061264,0.71,130.23,130.21,8.4]
[1765740061464,0.71,130.23,130.21,16.07978022]
[1765740063187,0.71,130.23,130.21,7.67978022]
[1765740067883,8.3889356,130.23,130.16,32.35378277]
[1765740068197,3.21790297,130.21,130.16,16.18260156]
[1765740068397,3.21790297,130.21,130.16,16.08260156]
[1765740068606,0.71,130.2,130.16,16.08260156]
[1765740069095,0.71,130.2,130.17,7.6821677]
[1765740073315,0.71,130.22,130.18,0.65]
[1765740073488,0.71,130.21,130.18,3.21790297]
[1765740073817,0.71,130.21,130.19,8.42]
[1765740074888,8.38990854,130.21,130.19,8.42]
[1765740075086,8.38990854,130.21,130.17,8.42]
[1765740075284,0.71,130.2,130.17,8.42]
[1765740075597,4.42790297,130.2,130.16,7.6825945]
[1765740075800,3.92790297,130.2,130.16,7.6825945]
[1765740076104,0.71,130.19,130.15,16.10319938]
[1765740076306,8.39115388,130.19,130.15,16.10319938]
[1765740076679,0.71,130.18,130.15,16.10319938]
[1765740077388,0.71,130.18,130.15,19.97110235]
[1765740077909,0.71,130.18,130.15,19.97572271]
[1765740079313,0.71,130.18,130.15,16.75319938]
[1765740080010,0.71,130.18,130.15,19.97572271]
[1765740082486,20.72734818,130.21,130.16,11.55480214]
[1765740082782,0.71,130.19,130.16,30.76193182]
[1765740082982,105.41,130.22,130.18,3.22252333]
[1765740083186,0.71,130.22,130.19,12.29252333]
[1765740083489,0.71,130.24,130.21,3.22252333]
[1765740083894,0.71,130.24,130.21,3.87252333]
[1765740084728,0.71,130.24,130.21,11.55184514]
[1765740085515,0.71,130.24,130.21,8.32932181]
[1765740085830,0.2,130.25,130.22,0.65]
[1765740085831,0.91,130.25,130.22,0.65]
[1765740086032,0.2,130.25,130.24,3.22252333]
[1765740086330,0.2,130.25,130.23,3.22252333]
[1765740086536,0.89,130.25,130.23,3.22252333]
[1765740086716,0.89,130.25,130.23,7.67872226]
[1765740087913,0.2,130.25,130.22,16.09917614]
[1765740088113,0.7,130.24,130.22,16.09917614]
[1765740092934,0.7,130.24,130.22,8.42]
[1765740094810,0.7,130.24,130.21,7.67985646]
[1765740098137,10.43891457,130.24,130.17,32.91214154]
[1765740098328,1.2,130.23,130.19,7.68070899]
[1765740098839,0.7,130.22,130.19,7.68070899]
[1765740113348,0.7,130.22,130.19,8.34070899]
[1765740113743,0.7,130.22,130.19,7.68070899]
[1765740116674,0.7,130.22,130.19,8.37070899]
[1765740118275,0.7,130.22,130.19,7.68070899]
[1765740118591,0.7,130.24,130.2,0.69]
[1765740118872,126.3670912,130.25,130.2,0.69]
[1765740119044,0.7,130.23,130.2,0.69]
[1765740120082,0.7,130.23,130.21,7.67990169]
[1765740120864,0.7,130.23,130.21,8.36990169]
[1765740123481,0.7,130.23,130.21,7.67990169]
[1765740125460,0.7,130.23,130.2,7.68049155]
[1765740125788,0.7,130.23,130.2,8.37049155]
[1765740128466,0.7,130.23,130.19,7.68084114]
[1765740128467,13.0470912,130.22,130.19,7.68084114]
[1765740128789,13.0470912,130.22,130.19,8.37084114]
[1765740129089,0.7,130.21,130.19,8.37084114]